bitfinex-derivatives/quotes_SOLF0:USTF0_20241026
["timestamp","ask_amount","ask_price","bid_price","bid_amount"]
[1729952679165,2.983,167.8,167.75,5.5]
[1729952679856,2.9822,167.84,167.78,2.9831]
[1729952680073,5.5,167.87,167.78,2.9831]
[1729952680482,2.9824,167.83,167.78,2.9831]
[1729952680769,2.9824,167.83,167.75,5.5]
[1729952681271,2.9824,167.83,167.79,2.9829]
[1729952681472,2.9824,167.83,167.75,5.5]
[1729952681766,2.9821,167.84,167.75,5.5]
[1729952682162,5.5,167.88,167.75,5.5]
[1729952682464,3.7195,167.9,167.75,5.5]
[1729952682667,5.5,167.89,167.75,5.5]
[1729952683263,2.982,167.85,167.79,2.983]
[1729952683470,5.5,167.89,167.79,2.983]
[1729952683869,2.9824,167.83,167.79,2.983]
[1729952685069,5.5,167.89,167.79,2.983]
[1729952685668,2.9823,167.83,167.79,2.983]
[1729952685877,2.9823,167.83,167.75,5.5]
[1729952688177,2.9823,167.83,167.79,2.9829]
[1729952688574,5.5,167.89,167.79,2.9829]
[1729952688775,2.9826,167.82,167.79,2.9829]
[1729952691871,5.5,167.89,167.75,5.5]
[1729952692075,5.32,167.88,167.75,2.9836]
[1729952692275,5.32,167.88,167.7,4.31705024]
[1729952692276,23.24,167.88,167.7,1.3119]
[1729952692474,23.8832,167.87,167.7,2.9845]
[1729952692678,17.92,167.87,167.7,2.9845]
[1729952693096,17.92,167.87,167.69,1.2222]
[1729952693281,5.9638,167.86,167.69,1.2222]
[1729952693485,17.92,167.87,167.69,6.5422]
[1729952693787,2.984,167.74,167.7,2.9846]
[1729952694197,5.32,167.78,167.67,5.32]
[1729952694381,1.2612,167.77,167.67,5.32]
[1729952694688,1.2612,167.77,167.68,2.9848]
[1729952694889,1.2612,167.77,167.67,5.32]
[1729952695077,2.9839,167.74,167.7,2.9845]
[1729952695278,5.32,167.81,167.67,5.32]
[1729952695495,5.32,167.81,167.68,5.32]
[1729952696986,5.32,167.81,167.71,2.9843]
[1729952696987,2.9837,167.76,167.71,2.9843]
[1729952697191,2.9837,167.76,167.68,5.32]
[1729952697791,2.9837,167.76,167.72,2.9842]
[1729952697990,5.32,167.81,167.68,5.32]
[1729952698288,5.32,167.81,167.69,2.92825779]
[1729952698490,2.5744,167.82,167.69,2.92825779]
[1729952698689,2.5744,167.82,167.68,5.32]
[1729952698994,2.9833,167.78,167.74,2.9838]
[1729952699891,2.9834,167.77,167.74,2.9838]
[1729952700391,2.9835,167.77,167.73,8.304]
[1729952700692,2.5744,167.82,167.73,5.32]
[1729952700897,2.9829,167.8,167.74,2.9839]
[1729952701088,2.5744,167.82,167.74,2.9839]
[1729952701491,2.9831,167.79,167.75,2.9837]
[1729952702099,2.5744,167.82,167.75,2.9837]
[1729952702687,2.9829,167.8,167.76,2.9834]
[1729952702892,5.32,167.86,167.73,5.32]
[1729952703090,5.32,167.86,167.74,2.5652]
[1729952703287,2.414,167.89,167.74,2.5652]
[1729952703494,2.414,167.89,167.75,1.3172]
[1729952704386,2.982,167.85,167.82,2.9824]
[1729952704593,1.2038,167.89,167.8,5.32]
[1729952704898,1.2038,167.89,167.81,5.32]
[1729952705093,2.9816,167.87,167.83,2.9821]
[1729952705288,1.2038,167.89,167.81,5.32]
[1729952705496,1.2038,167.89,167.82,2.9823]
[1729952705497,2.9819,167.86,167.82,2.9823]
[1729952705696,2.9819,167.86,167.81,5.32]
[1729952706097,2.9812,167.9,167.81,5.32]
[1729952706295,2.9812,167.9,167.82,2.5955]
[1729952706597,7.8223,167.94,167.82,2.5955]
[1729952706802,2.9812,167.89,167.85,2.9819]
[1729952707001,7.8223,167.94,167.82,2.5955]
[1729952707201,2.5023,167.94,167.87,2.9815]
[1729952707502,5.9575,168.04,167.86,5.32]
[1729952707699,5.32,167.99,167.87,5.32]
[1729952708000,1.2921,168.0,167.87,5.32]
[1729952708405,1.2921,168.0,167.83,1.2376]
[1729952708698,1.2921,168.0,167.84,5.32]
[1729952708699,6.574,167.99,167.84,5.32]
[1729952709609,2.9804,167.94,167.89,2.9811]
[1729952709797,6.574,167.99,167.89,2.9811]
[1729952710099,2.9805,167.94,167.89,8.2811]
[1729952711010,2.9805,167.94,167.89,5.3]
[1729952711309,2.9805,167.94,167.9,2.981]
[1729952711803,1.2921,168.0,167.89,5.3]
[1729952712005,1.2455,168.03,167.9,2.4086]
[1729952712200,2.9799,167.97,167.92,2.9805]
[1729952712400,2.9799,167.97,167.9,2.4086]
[1729952712602,5.3,168.01,167.91,5.3]
[1729952712803,2.9796,167.98,167.91,5.3]
[1729952713003,1.1974,167.97,167.91,5.3]
[1729952713500,2.9801,167.96,167.91,5.3]
[1729952713701,1.1974,167.97,167.91,5.3]
[1729952715006,1.3112,168.0,167.91,5.3]
[1729952715406,2.9797,167.98,167.93,2.9804]
[1729952716306,1.2013,168.02,167.91,5.3]
[1729952716909,2.9796,167.99,167.94,2.9802]
[1729952717104,2.9796,167.99,167.91,5.3]
[1729952717306,1.2013,168.02,167.92,1.2246]
[1729952718014,2.9795,167.99,167.95,2.98]
[1729952718402,2.9795,167.99,167.92,1.2246]
[1729952718604,2.9795,167.99,167.96,2.98]
[1729952719603,1.2013,168.02,167.92,2.4534]
[1729952719802,2.9793,168.0,167.96,2.9798]
[1729952720209,2.9793,168.0,167.95,5.3]
[1729952720408,2.9793,168.0,167.97,2.9798]
[1729952721714,2.9787,168.04,167.95,5.3]
[1729952721906,1.31,168.07,167.95,5.3]
[1729952722316,2.9786,168.04,168.0,2.9791]
[1729952723424,2.9793,168.0,167.97,2.9798]
[1729952723820,1.31,168.07,167.97,2.9798]
[1729952724215,1.31,168.07,167.92,2.4534]
[1729952724416,1.31,168.07,167.94,2.9803]
[1729952724716,2.9796,167.99,167.94,2.9803]
[1729952726821,2.9796,167.98,167.94,2.9803]
[1729952728621,1.228,168.02,167.9,5.3]
[1729952728820,1.3069,168.01,167.9,5.3]
[1729952730328,2.9803,167.95,167.91,2.9808]
[1729952730522,2.9803,167.95,167.9,5.3]
[1729952730823,2.9797,167.98,167.9,5.3]
[1729952731030,2.9797,167.98,167.91,1.2152]
[1729952731322,2.9797,167.98,167.91,2.4535]
[1729952731826,5.3,168.05,167.91,3.6649]
[1729952732221,2.9792,168.01,167.97,2.9797]
[1729952732424,5.3,168.05,167.97,2.9797]
[1729952733224,2.9788,168.03,167.95,5.3]
[1729952733521,7.7749,168.06,167.95,5.3]
[1729952733731,2.9792,168.01,167.95,5.3]
[1729952734223,2.9793,168.0,167.97,2.9797]
[1729952734922,7.7749,168.06,167.99,2.9793]
[1729952734923,2.9788,168.03,167.99,2.9793]
[1729952735124,1.2189,168.06,167.95,5.3]
[1729952735822,2.9793,168.0,167.96,2.9799]
[1729952736026,1.2189,168.06,167.96,2.9799]
[1729952736521,2.9794,168.0,167.96,2.9799]
[1729952736725,1.2189,168.06,167.95,5.3]
[1729952736930,2.9791,168.01,167.95,5.3]
[1729952737329,2.9791,168.01,167.98,2.9796]
[1729952740231,1.2189,168.06,167.95,5.3]
[1729952740624,2.9796,167.99,167.95,5.3]
[1729952742332,2.9796,167.99,167.96,2.9799]
[1729952752046,2.98,167.96,167.91,3.6649]
[1729952752344,2.98,167.96,167.93,5.14]
[1729952752735,2.98,167.96,167.93,8.1204]
[1729952753135,2.98,167.96,167.93,5.14]
[1729952753438,2.98,167.96,167.94,2.9803]
[1729952753835,2.9799,167.97,167.94,2.9803]
[1729952755554,2.9799,167.97,167.92,5.14]
[1729952755555,5.14,168.03,167.92,5.14]
[1729952755753,2.9794,168.0,167.92,5.14]
[1729952756262,2.9794,168.0,167.97,2.9797]
[1729952761760,2.9794,168.0,167.96,5.14]
[1729952761761,6.3589,168.06,167.96,5.14]
[1729952761961,6.3589,168.06,167.96,8.12]
[1729952762262,6.3589,168.06,167.96,5.14]
[1729952762763,2.9797,167.98,167.96,5.14]
[1729952763963,2.9797,167.98,167.96,8.12]
[1729952766065,2.9793,168.0,167.97,2.9798]
[1729952767060,6.3589,168.06,167.91,2.4535]
[1729952767260,2.9796,167.98,167.92,5.14]
[1729952767956,2.9796,167.98,167.95,2.98]
[1729952768361,3.04252375,168.05,167.91,2.4535]
[1729952768555,2.9801,167.96,167.93,2.9803]
[1729952769669,5.14,168.02,167.92,5.14]
[1729952771265,2.9798,167.97,167.94,2.9803]
[1729952773760,2.9795,167.99,167.91,1.2152]
[1729952774065,1.1935,167.98,167.9,5.14]
[1729952774364,2.9804,167.94,167.91,2.9809]
[1729952774565,4.94,167.94,167.83,4.94]
[1729952774968,1.2761,167.93,167.83,4.94]
[1729952776753,4.94,167.94,167.83,4.94]
[1729952776955,4.94,167.96,167.83,4.94]
[1729952777158,4.94,167.96,167.84,1.3168]
[1729952777366,4.94,167.96,167.88,2.9813]
[1729952778168,2.9807,167.92,167.88,2.9813]
[1729952778370,4.94,167.96,167.84,4.94]
[1729952778672,2.9813,167.89,167.84,4.94]
[1729952778858,1.1935,167.98,167.82,1.2003]
[1729952779065,4.94,167.97,167.83,4.94]
[1729952779767,2.9815,167.88,167.84,2.9821]
[1729952779974,4.94,167.92,167.83,4.94]
[1729952780156,2.9814,167.89,167.85,2.9818]
[1729952780361,2.9814,167.89,167.83,4.94]
[1729952780666,4.94,167.92,167.83,4.94]
[1729952781464,2.9813,167.89,167.85,2.9818]
[1729952782166,2.9813,167.89,167.83,4.94]
[1729952782969,14.75052305,167.98,167.83,4.94]
[1729952783278,4.94,167.97,167.83,4.94]
[1729952783659,3.0072347,167.96,167.83,4.94]
[1729952784370,4.94,167.97,167.83,4.94]
[1729952784371,2.9813,167.89,167.83,4.94]
[1729952785376,2.9813,167.89,167.86,2.9817]
[1729952785567,4.94,167.97,167.83,4.94]
[1729952785765,2.9811,167.9,167.83,4.94]
[1729952785964,4.94,167.97,167.83,4.94]
[1729952786173,1.1935,167.98,167.83,4.94]
[1729952786174,2.9806,167.93,167.83,4.94]
[1729952786362,4.94,167.96,167.88,2.9813]
[1729952786770,2.9806,167.93,167.87,4.94]
[1729952787161,4.94,167.96,167.87,7.9214]
[1729952787367,4.94,167.96,167.87,2.9814]
[1729952788569,2.9809,167.91,167.87,2.9814]
[1729952789270,4.94,167.96,167.87,2.9814]
[1729952789873,2.981,167.91,167.87,2.9814]
[1729952790071,4.94,167.96,167.87,2.9814]
[1729952790270,2.981,167.91,167.87,2.9814]
[1729952790873,2.9811,167.9,167.87,2.9814]
[1729952792779,4.94,167.96,167.84,4.94]
[1729952793578,2.9811,167.9,167.87,2.9815]
[1729952795181,4.94,167.92,167.81,4.94]
[1729952795371,6.2307,167.91,167.81,4.94]
[1729952795675,2.9815,167.88,167.84,2.982]
[1729952797174,1.2907,167.91,167.81,4.94]
[1729952797477,4.94,167.92,167.81,4.94]
[1729952797678,2.9812,167.89,167.86,2.9816]
[1729952798177,1.2122,167.93,167.85,4.94]
[1729952798482,6.1882,167.96,167.85,4.94]
[1729952798780,6.1882,167.96,167.86,1.2969]
[1729952799570,2.9807,167.93,167.89,2.9811]
[1729952800368,2.9807,167.93,167.88,2.9814]
[1729952800670,2.9807,167.93,167.86,1.2969]
[1729952801969,2.9804,167.94,167.86,1.2969]
[1729952802171,2.9804,167.94,167.87,1.2299]
[1729952803282,2.9804,167.94,167.91,2.9808]
[1729952803672,4.94,167.98,167.89,4.94]
[1729952803875,1.21,168.0,167.89,4.94]
[1729952804077,6.15,168.0,167.92,2.9806]
[1729952804278,6.15,168.0,167.89,4.94]
[1729952804480,2.98,167.96,167.93,2.9804]
[1729952805477,6.15,168.0,167.93,2.9804]
[1729952805478,2.9799,167.97,167.93,2.9804]
[1729952806072,2.4936,168.04,167.93,4.92]
[1729952806283,7.4136,168.04,167.93,4.92]
[1729952806481,7.4136,168.04,167.87,5.4762206]
[1729952806778,2.9805,167.94,167.9,2.9809]
[1729952807379,2.9805,167.94,167.91,2.9808]
[1729952808080,4.92,167.99,167.92,2.9806]
[1729952808081,2.9802,167.95,167.92,2.9806]
[1729952808284,2.9802,167.95,167.89,4.92]
[1729952808685,4.92,167.99,167.89,4.92]
[1729952809083,2.4936,168.04,167.89,4.92]
[1729952809290,4.92,168.02,167.89,4.92]
[1729952809477,2.9798,167.98,167.94,2.9803]
[1729952809677,2.4936,168.04,167.88,3.03967111]
[1729952809882,4.92,168.03,167.89,4.92]
[1729952810184,2.9798,167.97,167.9,2.96771406]
[1729952811286,2.9798,167.97,167.94,2.9803]
[1729952811489,2.9798,167.97,167.94,7.9003]
[1729952812986,4.92,168.03,167.94,7.9003]
[1729952813282,2.9796,167.98,167.94,7.9003]
[1729952813683,2.9796,167.98,167.95,2.9801]
[1729952814278,2.9796,167.98,167.94,7.9003]
[1729952816083,2.9796,167.98,167.94,2.9803]
[1729952816285,2.9792,168.01,167.95,4.92]
[1729952816481,4.92,168.03,167.95,4.92]
[1729952817491,2.9798,167.98,167.95,4.92]
[1729952819084,2.9792,168.01,167.95,7.9]
[1729952819295,4.92,168.03,167.95,4.92]
[1729952819691,2.9797,167.98,167.95,4.92]
[1729952820285,2.4936,168.04,167.95,4.92]
[1729952820888,2.98,167.96,167.95,4.92]
[1729952821591,5.45577326,168.04,167.87,3.851]
[1729952821793,2.4936,168.04,167.88,4.9]
[1729952821983,2.91747246,168.03,167.88,4.9]
[1729952822184,2.91747246,168.03,167.91,2.9808]
[1729952822697,2.9803,167.95,167.91,2.9808]
[1729952824084,2.9803,167.95,167.92,2.9806]
[1729952825987,2.9797,167.98,167.93,2.9804]
[1729952826192,4.9,168.0,167.93,2.9804]
[1729952826785,2.4936,168.04,167.92,4.92]
[1729952827396,2.9793,168.0,167.92,4.92]
[1729952829303,2.9793,168.0,167.97,2.9798]
[1729952834004,2.9789,168.03,167.99,2.9794]
[1729952834702,2.9789,168.03,168.0,2.9792]
[1729952835101,5.9882,168.08,167.97,1.2466]
[1729952835298,5.9882,168.08,167.98,2.9795]
[1729952835492,4.76,168.07,167.98,2.9795]
[1729952835691,2.979,168.02,167.98,2.9795]
[1729952837497,2.979,168.02,167.87,5.44340437]
[1729952837498,4.76,168.07,167.94,4.76]
[1729952837706,4.76,168.06,167.94,4.76]
[1729952837900,2.9788,168.03,167.98,2.9796]
[1729952838103,4.76,168.06,167.94,4.76]
[1729952838600,2.9791,168.01,167.94,4.76]
[1729952840507,1.2282,168.08,167.94,4.76]
[1729952840711,1.2282,168.08,167.95,2.5188]
[1729952840907,2.9783,168.06,167.95,3.8126]
[1729952841407,1.2282,168.08,167.95,3.8126]
[1729952841709,2.9784,168.05,168.02,2.9789]
[1729952843107,1.2282,168.08,168.0,4.76]
[1729952843811,2.9784,168.05,168.01,2.9789]
[1729952844613,2.9784,168.05,168.0,4.76]
[1729952844811,2.9784,168.05,168.02,2.9789]
[1729952845609,2.9779,168.08,168.05,2.9784]
[1729952846312,8.472,168.15,168.04,4.76]
[1729952846516,8.472,168.15,168.05,4.76]
[1729952846812,2.9771,168.12,168.08,2.9778]
[1729952847002,2.4498,168.15,168.05,4.76]
[1729952847202,2.977,168.13,168.06,2.5451]
[1729952847813,4.2243,168.15,168.08,2.9777]
[1729952848017,1.2475,168.15,168.09,4.76]
[1729952848913,4.2242,168.15,168.11,2.9772]
[1729952849109,4.76,168.17,168.09,4.76]
[1729952849323,2.9762,168.18,168.14,2.9767]
[1729952850104,2.9759,168.19,168.15,2.9765]
[1729952850305,2.9759,168.19,168.15,7.7365]
[1729952851214,2.9754,168.22,168.18,2.976]
[1729952851417,2.9754,168.22,168.15,4.76]
[1729952851916,2.9754,168.22,168.17,2.9761]
[1729952853116,5.9585,168.27,168.07,4.20923842]
[1729952853317,2.9759,168.19,168.15,2.9765]
[1729952855317,5.9585,168.27,168.21,2.9755]
[1729952855318,2.975,168.24,168.21,2.9755]
[1729952855517,1.1985,168.27,168.19,4.76]
[1729952855709,1.1985,168.27,168.2,4.76]
[1729952855913,2.975,168.25,168.21,4.76]
[1729952856521,2.975,168.25,168.21,7.7355]
[1729952857316,2.9746,168.27,168.23,2.9751]
[1729952857515,1.2759,168.32,168.21,4.76]
[1729952857720,8.9128,168.48,168.22,1.2935]
[1729952857916,2.9734,168.34,168.22,1.2935]
[1729952858114,2.9734,168.34,168.23,2.6219]
[1729952858318,3.7298,168.39,168.23,2.6219]
[1729952858519,2.9734,168.34,168.29,2.974]
[1729952858715,2.9734,168.34,168.3,4.76]
[1729952859328,2.9731,168.35,168.3,7.7338]
[1729952860517,2.4772,168.39,168.31,2.9737]
[1729952861224,2.9728,168.37,168.31,2.9737]
[1729952861425,2.4772,168.39,168.31,2.9737]
[1729952861820,2.9731,168.36,168.31,2.9737]
[1729952862320,2.9736,168.33,168.28,2.9742]
[1729952862523,2.9736,168.33,168.29,4.76]
[1729952863416,2.4772,168.39,168.23,2.6219]
[1729952863614,2.9741,168.3,168.26,2.9745]
[1729952864120,2.9738,168.31,168.27,2.9745]
[1729952867926,4.86,168.38,168.24,4.86]
[1729952868134,2.9736,168.32,168.28,2.9742]
[1729952868330,4.86,168.38,168.29,4.86]
[1729952868727,2.9739,168.31,168.28,4.86]
[1729952872526,7.83664525,168.34,168.21,2.9754]
[1729952872833,1.3228,168.3,168.19,4.86]
[1729952873020,1.3228,168.3,168.2,4.86]
[1729952873431,2.9748,168.25,168.22,2.9752]
[1729952874930,1.3228,168.3,168.23,2.9751]
[1729952874931,2.9745,168.27,168.23,2.9751]
[1729952875137,1.3228,168.3,168.23,2.9751]
[1729952875635,2.9745,168.27,168.23,2.975]
[1729952876332,2.9749,168.25,168.21,2.9754]
[1729952876535,1.3228,168.3,168.22,4.86]
[1729952877135,2.9748,168.26,168.22,7.8353]
[1729952878125,1.3228,168.3,168.22,4.86]
[1729952878838,2.9749,168.25,168.22,4.86]
[1729952879342,2.975,168.25,168.15,1.2942]
[1729952879537,4.86,168.29,168.16,5.95392121]
[1729952879731,4.86,168.29,168.16,4.86]
[1729952879932,2.9748,168.26,168.2,2.9757]
[1729952880234,4.86,168.29,168.18,4.86]
[1729952880828,2.9747,168.26,168.19,2.9758]
[1729952881031,4.86,168.29,168.19,2.9758]
[1729952881732,2.9753,168.23,168.19,2.9758]
[1729952881932,4.86,168.29,168.19,2.9758]
[1729952882334,2.9755,168.22,168.18,2.976]
[1729952882535,4.86,168.25,168.11,57.8]
[1729952882839,2.9756,168.21,168.17,2.9762]
[1729952884038,5.9473,168.32,168.15,4.86]
[1729952884241,3.7422,168.29,168.16,1.2183]
[1729952884633,2.9752,168.23,168.2,2.9756]
[1729952884837,2.9752,168.23,168.16,1.2183]
[1729952885643,4.86,168.28,168.16,1.2183]
[1729952885843,4.86,168.28,168.16,2.5286]
[1729952886042,4.86,168.28,168.23,2.9752]
[1729952886043,2.9748,168.26,168.23,2.9752]
[1729952886345,1.2445,168.29,168.2,4.86]
[1729952886939,2.9744,168.28,168.25,2.9748]
[1729952888038,1.2445,168.29,168.21,1.3115]
[1729952888345,2.9741,168.3,168.21,1.3115]
[1729952889740,2.9741,168.3,168.27,2.9744]
[1729952889933,2.9741,168.3,168.26,4.86]
[1729952890139,2.9741,168.3,168.26,7.8346]
[1729952892338,1.2164,168.33,168.26,4.86]
[1729952892541,2.9738,168.31,168.26,4.86]
[1729952893041,2.9738,168.31,168.26,7.8346]
[1729952893443,1.3238,168.35,168.26,4.86]
[1729952893748,1.3238,168.35,168.27,2.9744]
[1729952894246,1.3238,168.35,168.28,2.9742]
[1729952894541,1.3238,168.35,168.26,4.86]
[1729952894746,2.9735,168.33,168.26,4.86]
[1729952894942,1.1926,168.41,168.26,4.86]
[1729952895145,1.2856,168.4,168.27,1.2747]
[1729952895645,1.2856,168.4,168.28,1.2161]
[1729952896237,2.9731,168.35,168.31,2.9737]
[1729952896441,2.9731,168.35,168.32,4.78]
[1729952896850,2.9731,168.35,168.31,2.9737]
[1729952897042,2.9731,168.35,168.32,4.78]
[1729952897436,1.2856,168.4,168.32,4.78]
[1729952898251,1.2856,168.4,168.34,2.9732]
[1729952898646,2.9727,168.38,168.33,2.9733]
[1729952898945,6.083,168.45,168.32,4.78]
[1729952899146,2.9723,168.4,168.32,4.78]
[1729952899452,2.9723,168.4,168.36,2.9729]
[1729952899643,2.9723,168.4,168.37,4.78]
[1729952899842,2.972,168.42,168.38,2.9725]
[1729952900042,1.2602,168.45,168.38,2.9725]
[1729952900246,1.2602,168.45,168.37,4.78]
[1729952900739,1.2602,168.45,168.39,2.9723]
[1729952901146,2.9718,168.43,168.39,2.9723]
[1729952901345,1.2602,168.45,168.38,2.9725]
[1729952901939,2.9715,168.44,168.4,2.9722]
[1729952902142,247.82218308,168.46,168.41,4.78]
[1729952902342,247.82218308,168.46,168.4,4.78]
[1729952903347,2.9718,168.43,168.4,4.78]
[1729952905041,2.9715,168.44,168.4,7.7522]
[1729952905253,1.2805,168.48,168.4,4.78]
[1729952905845,1.2805,168.48,168.41,2.9719]
[1729952906354,2.9712,168.46,168.4,4.78]
[1729952906651,2.9712,168.46,168.42,2.9717]
[1729952906852,6.0932,168.51,168.42,2.9717]
[1729952907050,1.3132,168.51,168.42,2.9717]
[1729952907258,1.3132,168.51,168.4,4.78]
[1729952907259,1.3132,168.51,168.4,7.7522]
[1729952907450,2.9717,168.44,168.4,7.7522]
[1729952912049,2.9722,168.41,168.38,1.2297]
[1729952912253,4.78,168.48,168.38,4.78]
[1729952912450,1.2404,168.47,168.38,4.78]
[1729952912757,2.9724,168.39,168.35,7.7529]
[1729952914556,1.2722,168.46,168.35,4.78]
[1729952914758,2.9725,168.39,168.35,7.753]
[1729952917963,4.78,168.44,168.35,7.753]
[1729952918158,2.9725,168.39,168.35,7.753]
[1729952919056,4.78,168.44,168.35,4.78]
[1729952919257,1.2722,168.46,168.35,4.78]
[1729952919862,1.2722,168.46,168.38,2.9725]
[1729952920559,2.9721,168.41,168.38,2.9725]
[1729952920758,1.2722,168.46,168.34,2.9732]
[1729952921264,1.2722,168.46,168.33,7.7534]
[1729952921466,2.9729,168.37,168.33,7.7534]
[1729952921760,2.9729,168.37,168.33,4.78]
[1729952921951,2.9729,168.37,168.31,2.6277]
[1729952922157,2.9729,168.37,168.32,4.78]
[1729952922661,2.9729,168.37,168.33,4.78]
[1729952923168,2.9729,168.37,168.34,2.9732]
[1729952926270,1.2739,168.42,168.33,4.78]
[1729952926867,2.973,168.36,168.33,7.7534]
[1729952928162,2.973,168.36,168.33,2.9734]
[1729952931366,2.9737,168.32,168.29,2.974]
[1729952931567,4.72,168.39,168.29,7.694]
[1729952931878,4.72,168.39,168.29,4.72]
[1729952932666,4.72,168.39,168.28,216.82063]
[1729952932870,4.72,168.39,168.29,4.72]
[1729952933065,2.9736,168.33,168.29,7.6941]
[1729952934468,1.203,168.38,168.29,4.72]
[1729952934666,4.72,168.39,168.29,4.72]
[1729952935067,2.9729,168.37,168.33,2.9733]
[1729952935262,2.9729,168.37,168.28,216.82063]
[1729952935263,4.72,168.39,168.3,4.72]
[1729952935669,2.9733,168.34,168.3,7.6939]
[1729952936176,2.9733,168.34,168.31,2.9738]
[1729952939174,2.9732,168.35,168.31,2.9738]
[1729952940470,2.9732,168.35,168.32,2.9736]
[1729952941572,4.72,168.34,168.28,216.82063]
[1729952941972,2.9735,168.33,168.3,2.9739]
[1729952942279,4.72,168.37,168.28,216.82063]
[1729952942967,2.9741,168.29,168.28,216.82063]
[1729952944971,2.9741,168.29,168.28,214.83483]
[1729952945176,2.9741,168.29,168.28,208.86103]
[1729952950876,7.6941,168.29,168.28,208.86103]
[1729952952578,25.5441,168.29,168.28,208.86103]
[1729952953286,7.6941,168.29,168.28,208.86103]
[1729952956388,2.977,168.13,168.12,1.2081]
[1729952956581,4.86,168.15,168.06,1.2706]
[1729952957490,2.978,168.09,168.08,1.2458]
[1729952957790,2.978,168.09,168.06,1.2706]
[1729952958184,2.9778,168.11,168.06,1.2706]
[1729952958387,4.86,168.1,168.06,1.2706]
[1729952958585,4.86,168.1,168.06,4.2491]
[1729952958794,7.8379,168.1,168.06,1.2706]
[1729952958987,2.9779,168.1,168.06,1.2706]
[1729952959180,57.82,168.19,168.06,4.249]
[1729952959491,4.86,168.18,168.06,4.249]
[1729952960092,4.86,168.18,168.06,1.2706]
[1729952960387,4.86,168.18,168.0,7.4555]
[1729952960388,2.978,168.09,168.04,2.9787]
[1729952960581,7.838,168.09,168.04,2.9787]
[1729952961578,7.838,168.09,168.05,2.9787]
[1729952963785,4.86,168.09,168.05,2.9787]
[1729952966994,4.86,168.09,168.01,1.1963]
[1729952967197,2.9784,168.07,168.01,1.1963]
[1729952967595,4.86,168.09,168.01,1.1963]
[1729952968200,2.9783,168.08,168.04,2.9788]
[1729952968900,2.9784,168.07,168.01,1.1963]
[1729952969102,4.86,168.09,168.01,1.1963]
[1729952969789,2.9783,168.08,168.04,2.9788]
[1729952970194,7.8383,168.08,168.04,2.9788]
[1729952970598,2.9784,168.07,168.03,2.9789]
[1729952970795,2.9784,168.07,168.01,1.1963]
[1729952972203,4.86,168.08,168.01,1.1963]
[1729952972397,2.9786,168.06,168.02,2.9791]
[1729952973200,2.9787,168.05,168.02,2.9791]
[1729952973500,4.86,168.07,168.0,1.3162]
[1729952973897,2.9787,168.05,168.0,1.3162]
[1729952974107,4.86,168.07,168.0,1.3162]